[Event "Bijnor Open 2023"]
[Site "Bijnor"]
[Date "2023.12.03"]
[Round "7.4"]
[White "Shaurya Prabhakar"]
[Black "Daksh Goyal"]
[Result "0-1"]
[ECO "D43"]
[WhiteElo "1578"]
[BlackElo "1814"]
[Annotator "NA RC"]
[PlyCount "80"]
[EventDate "2023.11.29"]
[EventCountry "IND"]
[SourceTitle "playchess.com"]
[Source "ChessBase"]
[SourceQuality "1"]
[TimeControl "5400+30"]

1. d4 {[%emt 0:01:06]} d5 {[%emt 0:05:24]} 2. c4 {[%emt 0:01:05]} c6 {[%emt 0:00:02]} 3. Nf3 {[%emt 0:00:13]} Nf6 {[%emt 0:00:02]} 4. Nc3 {[%emt 0:00:08]} e6 {[%emt 0:00:05]} 5. Bg5 {[%emt 0:01:05]} h6 {[%emt 0:00:08]} 6. Bh4 {[%emt 0:00:06]} dxc4 {[%emt 0:00:06]} 7. e4 {[%emt 0:00:14]} g5 {[%emt 0:00:01]} 8. Bg3 {[%emt 0:03:04]} b5 {[%emt 0:05:05]} 9. Be5 {[%emt 0:06:16]} Nbd7 {[%emt 0:02:13]} 10. Bxf6 {[%emt 0:10:02]} Nxf6 {[%emt 0:02:21]} 11. Ne5 {[%emt 0:03:00]} Bb7 {[%emt 0:07:09]} 12. f3 {[%emt 0:08:16]} Qb6 {[%emt 0:19:08]} 13. Qd2 {[%emt 0:10:03]} Rd8 {[%emt 0:04:27]} 14. Rd1 {[%emt 0:01:23]} c5 {[%emt 0:11:11]} 15. d5 {[%emt 0:24:44]} exd5 {[%emt 0:05:40]} 16. exd5 {[%emt 0:00:10]} Nxd5 {[%emt 0:12:55]} 17. Nxb5 {[%emt 0:20:05]} Qxb5 {[%emt 0:02:43]} 18. Bxc4 {[%emt 0:00:08]} Qb4 {[%emt 0:06:11]} 19. O-O {[%emt 0:00:19]} Qxd2 {[%emt 0:01:42]} 20. Bb5+ {[%emt 0:00:26]} Ke7 {[%emt 0:00:21]} 21. Rxd2 {[%emt 0:00:11]} Bg7 {[%emt 0:00:25]} 22. Re1 {[%emt 0:03:28]} Bxe5 {[%emt 0:00:57]} 23. Rxe5+ {[%emt 0:00:14]} Kf6 {[%emt 0:00:30]} 24. Re1 {[%emt 0:01:15]} Nc7 {[%emt 0:00:49]} 25. Bd7 {[%emt 0:00:49]} Bd5 {[%emt 0:01:02]} 26. Ba4 {[%emt 0:00:25]} Bb7 {[%emt 0:03:05]} 27. Rc2 {[%emt 0:00:46]} Ne6 {[%emt 0:00:29]} 28. Bb3 {[%emt 0:00:41]} Bd5 {[%emt 0:00:21]} 29. Ba4 {[%emt 0:02:33]} Rb8 {[%emt 0:00:48]} 30. b3 {[%emt 0:00:30]} Rhc8 {[%emt 0:00:25]} 31. Bd7 {[%emt 0:01:07]} Rc7 {[%emt 0:00:36]} 32. Bxe6 {[%emt 0:00:10]} Bxe6 {[%emt 0:00:46]} 33. f4 {[%emt 0:00:09]} gxf4 {[%emt 0:01:14]} 34. Rf1 {[%emt 0:00:09]} Rb4 {[%emt 0:00:33]} 35. g3 {[%emt 0:01:07]} Rd4 {[%emt 0:00:15]} 36. gxf4 {[%emt 0:00:20]} Rc8 {[%emt 0:00:23]} 37. Rf3 {[%emt 0:00:27]} Rg8+ {[%emt 0:00:16]} 38. Kf2 {[%emt 0:00:06]} Bd5 {[%emt 0:00:52]} 39. Rfc3 {[%emt 0:00:26]} Rxf4+ {[%emt 0:00:46]} 40. Ke3 {[%emt 0:00:12]} Rf3+ {[%emt 0:00:15]} 0-1

[Event "Bijnor Open 2023"]
[Site "Bijnor"]
[Date "2023.12.03"]
[Round "7.5"]
[White "Anchal, Rastogi"]
[Black "Ayush Saxena"]
[Result "1-0"]
[ECO "D02"]
[WhiteElo "1770"]
[BlackElo "1567"]
[Annotator "NA RC"]
[PlyCount "143"]
[EventDate "2023.11.29"]
[EventCountry "IND"]
[SourceTitle "playchess.com"]
[Source "ChessBase"]
[SourceQuality "1"]
[TimeControl "5400+30"]

1. Nf3 {[%emt 0:00:11]} Nf6 {[%emt 0:00:08]} 2. g3 {[%emt 0:00:15]} d5 {[%emt 0:00:11]} 3. Bg2 {[%emt 0:00:10]} Nc6 {[%emt 0:00:19]} 4. d4 {[%emt 0:00:21]} Bf5 {[%emt 0:00:09]} 5. O-O {[%emt 0:00:34]} e6 {[%emt 0:01:03]} 6. c3 {[%emt 0:00:41]} a5 {[%emt 0:00:27]} 7. h3 {[%emt 0:00:29]} Bd6 {[%emt 0:00:19]} 8. Nbd2 {[%emt 0:00:40]} Qd7 {[%emt 0:01:58]} 9. Nh4 {[%emt 0:01:18]} O-O {[%emt 0:04:13]} 10. g4 {[%emt 0:07:58]} Be4 {[%emt 0:00:54]} 11. f3 {[%emt 0:02:30]} Bg6 {[%emt 0:02:01]} 12. Nxg6 {[%emt 0:00:16]} fxg6 {[%emt 0:02:00]} 13. e4 {[%emt 0:00:14]} e5 {[%emt 0:02:53]} 14. dxe5 {[%emt 0:05:47]} Nxe5 {[%emt 0:00:53]} 15. exd5 {[%emt 0:12:55]} Bc5+ {[%emt 0:01:30]} 16. Kh1 {[%emt 0:00:25]} Nd3 {[%emt 0:03:27]} 17. Qe2 {[%emt 0:04:15]} Qxd5 {[%emt 0:07:48]} 18. Ne4 {[%emt 0:04:41]} Nxe4 {[%emt 0:03:41]} 19. fxe4 {[%emt 0:00:20]} Rxf1+ {[%emt 0:06:24]} 20. Bxf1 {[%emt 0:00:42]} Qxe4+ {[%emt 0:00:58]} 21. Qxe4 {[%emt 0:02:52]} Nf2+ {[%emt 0:00:09]} 22. Kg2 {[%emt 0:00:06]} Nxe4 {[%emt 0:00:15]} 23. Bc4+ {[%emt 0:00:12]} Kh8 {[%emt 0:00:26]} 24. Bd5 {[%emt 0:00:19]} Nd6 {[%emt 0:02:47]} 25. Bf4 {[%emt 0:10:37]} Re8 {[%emt 0:00:37]} 26. Bf3 {[%emt 0:00:51]} h6 {[%emt 0:03:28]} 27. Rd1 {[%emt 0:01:25]} g5 {[%emt 0:01:43]} 28. Bg3 {[%emt 0:02:10]} Re7 {[%emt 0:09:41]} 29. Rd5 {[%emt 0:02:01]} b6 {[%emt 0:00:29]} 30. Re5 {[%emt 0:03:17]} Rxe5 {[%emt 0:04:14]} 31. Bxe5 {[%emt 0:00:04]} Nc4 {[%emt 0:00:02]} 32. Bxc7 {[%emt 0:00:26]} Nxb2 {[%emt 0:00:06]} 33. Be2 {[%emt 0:00:04]} Na4 {[%emt 0:00:54]} 34. Be5 {[%emt 0:00:04]} Be7 {[%emt 0:00:39]} 35. Bb5 {[%emt 0:02:06]} Nb2 {[%emt 0:01:06]} 36. Kf3 {[%emt 0:01:09]} Bc5 {[%emt 0:01:02]} 37. Ke2 {[%emt 0:00:26]} a4 {[%emt 0:00:54]} 38. Kd2 {[%emt 0:03:53]} Kg8 {[%emt 0:00:42]} 39. Kc2 {[%emt 0:00:23]} a3 {[%emt 0:00:21]} 40. Be2 {[%emt 0:00:57]} Kf7 {[%emt 0:01:33]} 41. Kb3 {[%emt 0:00:20]} b5 {[%emt 0:01:17]} 42. Bxb5 {[%emt 0:01:30]} Nd1 {[%emt 0:00:35]} 43. Bc4+ {[%emt 0:00:24]} Kf8 {[%emt 0:00:16]} 44. Bd4 {[%emt 0:00:12]} Bxd4 {[%emt 0:02:13]} 45. cxd4 {[%emt 0:00:07]} Ke7 {[%emt 0:00:59]} 46. Kxa3 {[%emt 0:00:54]} Kd6 {[%emt 0:00:17]} 47. Kb4 {[%emt 0:00:34]} Nf2 {[%emt 0:00:36]} 48. Bf1 {[%emt 0:00:47]} Kd5 {[%emt 0:03:20]} 49. Kc3 {[%emt 0:00:37]} Nd1+ {[%emt 0:00:16]} 50. Kd2 {[%emt 0:04:04]} Nb2 {[%emt 0:00:15]} 51. Kc2 {[%emt 0:05:17]} Na4 {[%emt 0:00:19]} 52. Bb5 {[%emt 0:00:20]} Nb6 {[%emt 0:00:28]} 53. Kd3 {[%emt 0:00:08]} Nc8 {[%emt 0:00:16]} 54. Bc4+ {[%emt 0:00:41]} Kd6 {[%emt 0:00:07]} 55. Ke4 {[%emt 0:00:54]} Nb6 {[%emt 0:01:02]} 56. Bb3 {[%emt 0:00:13]} g6 {[%emt 0:00:11]} 57. a4 {[%emt 0:00:38]} h5 {[%emt 0:00:33]} 58. a5 {[%emt 0:00:07]} Na8 {[%emt 0:00:48]} 59. Bf7 {[%emt 0:00:42]} hxg4 {[%emt 0:00:34]} 60. hxg4 {[%emt 0:00:01]} Nc7 {[%emt 0:00:18]} 61. Bxg6 {[%emt 0:02:27]} Ke6 {[%emt 0:00:13]} 62. Bh7 {[%emt 0:00:48]} Nb5 {[%emt 0:00:44]} 63. Bg8+ {[%emt 0:00:24]} Kd6 {[%emt 0:00:19]} 64. Bc4 {[%emt 0:00:09]} Na7 {[%emt 0:00:43]} 65. d5 {[%emt 0:02:10]} Kc5 {[%emt 0:00:21]} 66. Bb3 {[%emt 0:01:30]} Nb5 {[%emt 0:00:15]} 67. Ke5 {[%emt 0:00:55]} Nd6 {[%emt 0:00:30]} 68. a6 {[%emt 0:01:02]} Nc8 {[%emt 0:00:08]} 69. Ke6 {[%emt 0:00:17]} Na7 {[%emt 0:00:36]} 70. Ba4 {[%emt 0:01:07]} Nc8 {[%emt 0:00:10]} 71. Bc6 {[%emt 0:00:16]} Na7 {[%emt 0:00:29]} 72. Kf5 {[%emt 0:00:16]} 1-0

[Event "Bijnor Open 2023"]
[Site "Bijnor"]
[Date "2023.12.03"]
[Round "7.6"]
[White "Wazeer Ahmad, Khan"]
[Black "Ravish Chaudhary"]
[Result "1-0"]
[ECO "D37"]
[WhiteElo "1686"]
[BlackElo "1351"]
[Annotator "NA RC"]
[PlyCount "115"]
[EventDate "2023.11.29"]
[EventCountry "IND"]
[SourceTitle "playchess.com"]
[Source "ChessBase"]
[SourceQuality "1"]
[TimeControl "5400+30"]

1. d4 {[%emt 0:00:05]} d5 {[%emt 0:00:03]} 2. Nf3 {[%emt 0:00:08]} Nf6 {[%emt 0:00:18]} 3. c4 {[%emt 0:00:04]} e6 {[%emt 0:00:08]} 4. Nc3 {[%emt 0:00:44]} a6 {[%emt 0:00:09]} 5. e3 {[%emt 0:00:47]} Be7 {[%emt 0:00:53]} 6. a3 {[%emt 0:09:40]} dxc4 {[%emt 0:03:22]} 7. Bxc4 {[%emt 0:00:15]} b5 {[%emt 0:00:40]} 8. Bd3 {[%emt 0:02:39]} c5 {[%emt 0:00:14]} 9. dxc5 {[%emt 0:01:06]} Bxc5 {[%emt 0:00:35]} 10. b4 {[%emt 0:05:47]} Be7 {[%emt 0:02:45]} 11. Bb2 {[%emt 0:00:47]} Bb7 {[%emt 0:01:01]} 12. O-O {[%emt 0:03:03]} Nbd7 {[%emt 0:00:41]} 13. Qe2 {[%emt 0:01:15]} Bxf3 {[%emt 0:07:36]} 14. gxf3 {[%emt 0:00:16]} Qb6 {[%emt 0:08:30]} 15. Ne4 {[%emt 0:08:17]} Nxe4 {[%emt 0:04:34]} 16. Bxe4 {[%emt 0:00:51]} Rc8 {[%emt 0:03:19]} 17. Rac1 {[%emt 0:04:55]} O-O {[%emt 0:02:38]} 18. Bxh7+ {[%emt 0:01:12]} Kxh7 {[%emt 0:11:31]} 19. Qd3+ {[%emt 0:00:17]} f5 {[%emt 0:01:51]} 20. Qxd7 {[%emt 0:00:18]} Rxc1 {[%emt 0:00:54]} 21. Rxc1 {[%emt 0:00:25]} Bf6 {[%emt 0:04:34]} 22. Bxf6 {[%emt 0:00:27]} Rxf6 {[%emt 0:00:04]} 23. Qc7 {[%emt 0:02:52]} Qxc7 {[%emt 0:01:51]} 24. Rxc7 {[%emt 0:00:09]} e5 {[%emt 0:00:25]} 25. Re7 {[%emt 0:01:20]} Rd6 {[%emt 0:10:08]} 26. Rxe5 {[%emt 0:01:01]} Kg6 {[%emt 0:00:28]} 27. e4 {[%emt 0:00:54]} f4 {[%emt 0:02:03]} 28. Kg2 {[%emt 0:00:53]} Kh6 {[%emt 0:01:08]} 29. Rf5 {[%emt 0:01:12]} g5 {[%emt 0:01:11]} 30. h4 {[%emt 0:01:35]} gxh4 {[%emt 0:01:04]} 31. Rxf4 {[%emt 0:00:15]} Kg5 {[%emt 0:00:38]} 32. Rf5+ {[%emt 0:01:18]} Kg6 {[%emt 0:00:14]} 33. Rc5 {[%emt 0:13:05]} Kf7 {[%emt 0:01:08]} 34. Rc3 {[%emt 0:01:16]} Kg6 {[%emt 0:05:04]} 35. f4 {[%emt 0:01:10]} Kh5 {[%emt 0:00:24]} 36. Kh3 {[%emt 0:00:56]} Rd2 {[%emt 0:04:45]} 37. Rc5+ {[%emt 0:01:24]} Kg6 {[%emt 0:03:35]} 38. Kxh4 {[%emt 0:00:09]} Rxf2 {[%emt 0:00:17]} 39. Rc6+ {[%emt 0:00:13]} Kf7 {[%emt 0:00:14]} 40. Kg5 {[%emt 0:00:14]} Re2 {[%emt 0:05:29]} 41. e5 {[%emt 0:00:34]} Re4 {[%emt 0:03:36]} 42. Rxa6 {[%emt 0:00:30]} Ke7 {[%emt 0:00:41]} 43. Kf5 {[%emt 0:00:28]} Rd4 {[%emt 0:00:36]} 44. Ra7+ {[%emt 0:00:31]} Kd8 {[%emt 0:01:59]} 45. e6 {[%emt 0:00:28]} Ke8 {[%emt 0:01:54]} 46. Ke5 {[%emt 0:00:37]} Rd8 {[%emt 0:01:17]} 47. f5 {[%emt 0:00:37]} Rb8 {[%emt 0:00:34]} 48. f6 {[%emt 0:00:32]} Rc8 {[%emt 0:02:06]} 49. Rh7 {[%emt 0:00:43]} Kd8 {[%emt 0:02:18]} 50. Rh8+ {[%emt 0:00:09]} Kc7 {[%emt 0:00:02]} 51. Rxc8+ {[%emt 0:00:19]} Kxc8 {[%emt 0:00:02]} 52. f7 {[%emt 0:00:11]} Kc7 {[%emt 0:00:47]} 53. f8=Q {[%emt 0:00:10]} Kc6 {[%emt 0:00:17]} 54. Qc8+ {[%emt 0:00:13]} Kb6 {[%emt 0:00:02]} 55. e7 {[%emt 0:00:40]} Ka7 {[%emt 0:00:20]} 56. e8=R {[%emt 0:00:09]} Kb6 {[%emt 0:00:10]} 57. Re6+ {[%emt 0:00:20]} Ka7 {[%emt 0:00:08]} 58. Ra6# {[%emt 0:00:16]} 1-0

[Event "Bijnor Open 2023"]
[Site "Bijnor"]
[Date "2023.12.03"]
[Round "7.7"]
[White "Shubh, Singh Saini"]
[Black "Verma Ashu"]
[Result "0-1"]
[ECO "C44"]
[WhiteElo "1421"]
[BlackElo "1674"]
[Annotator "NA RC"]
[PlyCount "132"]
[EventDate "2023.11.29"]
[EventCountry "IND"]
[SourceTitle "playchess.com"]
[Source "ChessBase"]
[SourceQuality "1"]
[TimeControl "5400+30"]

1. e4 {[%emt 0:00:02]} Nc6 {[%emt 0:03:17]} 2. d3 {[%emt 0:00:20]} e5 {[%emt 0:00:13]} 3. Nf3 {[%emt 0:00:17]} Bc5 {[%emt 0:01:38]} 4. g3 {[%emt 0:00:23]} d6 {[%emt 0:00:10]} 5. Bg2 {[%emt 0:00:08]} Bb6 {[%emt 0:05:51]} 6. O-O {[%emt 0:00:55]} f6 {[%emt 0:03:40]} 7. Nh4 {[%emt 0:07:17]} Be6 {[%emt 0:04:01]} 8. c3 {[%emt 0:10:26]} Qd7 {[%emt 0:01:26]} 9. Be3 {[%emt 0:02:59]} g5 {[%emt 0:08:36]} 10. Nf3 {[%emt 0:05:11]} h5 {[%emt 0:04:54]} 11. d4 {[%emt 0:03:19]} Bg4 {[%emt 0:00:09]} 12. dxe5 {[%emt 0:13:45]} Nxe5 {[%emt 0:00:17]} 13. Nxe5 {[%emt 0:01:50]} fxe5 {[%emt 0:00:12]} 14. Qd2 {[%emt 0:01:35]} O-O-O {[%emt 0:04:01]} 15. Bxg5 {[%emt 0:05:12]} Rf8 {[%emt 0:01:58]} 16. a4 {[%emt 0:01:55]} a6 {[%emt 0:03:20]} 17. Be3 {[%emt 0:02:51]} Bxe3 {[%emt 0:05:09]} 18. Qxe3 {[%emt 0:00:11]} Kb8 {[%emt 0:01:08]} 19. b4 {[%emt 0:07:15]} h4 {[%emt 0:00:42]} 20. Nd2 {[%emt 0:00:37]} Bh3 {[%emt 0:00:27]} 21. Qe2 {[%emt 0:12:53]} Nf6 {[%emt 0:00:59]} 22. b5 {[%emt 0:04:14]} a5 {[%emt 0:00:41]} 23. b6 {[%emt 0:01:24]} cxb6 {[%emt 0:00:18]} 24. Nc4 {[%emt 0:00:18]} Bxg2 {[%emt 0:00:04]} 25. Kxg2 {[%emt 0:00:49]} hxg3 {[%emt 0:00:10]} 26. fxg3 {[%emt 0:03:25]} Qh3+ {[%emt 0:00:02]} 27. Kg1 {[%emt 0:00:13]} Ng4 {[%emt 0:00:17]} 28. Ne3 {[%emt 0:04:54]} Rxf1+ {[%emt 0:05:03]} 29. Nxf1 {[%emt 0:01:28]} Rf8 {[%emt 0:00:31]} 30. Ra2 {[%emt 0:04:47]} Rf2 {[%emt 0:02:48]} 31. Qxf2 {[%emt 0:00:06]} Nxf2 {[%emt 0:00:16]} 32. Rxf2 {[%emt 0:00:01]} Qg4 {[%emt 0:00:22]} 33. h4 {[%emt 0:00:27]} Qxe4 {[%emt 0:00:17]} 34. h5 {[%emt 0:00:12]} Qh7 {[%emt 0:07:56]} 35. g4 {[%emt 0:00:25]} e4 {[%emt 0:05:52]} 36. Ne3 {[%emt 0:00:17]} Qh6 {[%emt 0:04:07]} 37. Nf5 {[%emt 0:00:06]} Qc1+ {[%emt 0:00:12]} 38. Kg2 {[%emt 0:01:06]} Qxc3 {[%emt 0:02:24]} 39. Nxd6 {[%emt 0:00:07]} Qg7 {[%emt 0:04:50]} 40. Kh3 {[%emt 0:01:34]} e3 {[%emt 0:00:19]} 41. Re2 {[%emt 0:01:09]} Qd4 {[%emt 0:05:39]} 42. Nf5 {[%emt 0:00:06]} Qxa4 {[%emt 0:00:08]} 43. Rxe3 {[%emt 0:00:11]} Qd1 {[%emt 0:04:44]} 44. Kh4 {[%emt 0:00:57]} a4 {[%emt 0:00:21]} 45. h6 {[%emt 0:00:22]} Qh1+ {[%emt 0:01:30]} 46. Kg5 {[%emt 0:00:59]} b5 {[%emt 0:00:32]} 47. Kg6 {[%emt 0:01:16]} b4 {[%emt 0:02:15]} 48. h7 {[%emt 0:02:44]} b3 {[%emt 0:03:54]} 49. Nh6 {[%emt 0:00:18]} Qc6+ {[%emt 0:04:31]} 50. Kg7 {[%emt 0:00:42]} Qd7+ {[%emt 0:00:03]} 51. Kg8 {[%emt 0:01:21]} Qxh7+ {[%emt 0:01:54]} 52. Kxh7 {[%emt 0:00:02]} b2 {[%emt 0:00:01]} 53. Re1 {[%emt 0:00:36]} a3 {[%emt 0:00:01]} 54. g5 {[%emt 0:00:08]} a2 {[%emt 0:00:05]} 55. g6 {[%emt 0:00:03]} b1=Q {[%emt 0:00:07]} 56. Rxb1 {[%emt 0:00:13]} axb1=Q {[%emt 0:02:04]} 57. Nf7 {[%emt 0:00:02]} b5 {[%emt 0:00:16]} 58. Kh6 {[%emt 0:00:41]} Qh1+ {[%emt 0:00:29]} 59. Kg5 {[%emt 0:00:21]} Qg2+ {[%emt 0:00:29]} 60. Kf6 {[%emt 0:00:11]} Qf3+ {[%emt 0:00:08]} 61. Kg5 {[%emt 0:00:18]} Qg3+ {[%emt 0:00:09]} 62. Kf6 {[%emt 0:00:25]} Qf4+ {[%emt 0:00:03]} 63. Kg7 {[%emt 0:00:12]} b4 {[%emt 0:00:05]} 64. Kf8 {[%emt 0:00:28]} b3 {[%emt 0:01:19]} 65. g7 {[%emt 0:00:16]} Qb4+ {[%emt 0:00:38]} 66. Ke8 {[%emt 0:00:28]} Qg4 {[%emt 0:00:21]} 0-1

[Event "Bijnor Open 2023"]
[Site "Bijnor"]
[Date "2023.12.03"]
[Round "7.8"]
[White "Aabhas Kumar Srivastava"]
[Black "Gopal Krishna Maheshwari"]
[Result "0-1"]
[ECO "C54"]
[WhiteElo "1216"]
[BlackElo "1627"]
[Annotator "NA RC"]
[PlyCount "56"]
[EventDate "2023.11.29"]
[EventCountry "IND"]
[SourceTitle "playchess.com"]
[Source "ChessBase"]
[SourceQuality "1"]
[TimeControl "5400+30"]

1. e4 {[%emt 0:00:03]} e5 {[%emt 0:00:02]} 2. Nf3 {[%emt 0:00:07]} Nc6 {[%emt 0:00:04]} 3. Bc4 {[%emt 0:00:06]} Bc5 {[%emt 0:00:07]} 4. c3 {[%emt 0:00:07]} Nf6 {[%emt 0:00:03]} 5. d4 {[%emt 0:00:16]} exd4 {[%emt 0:00:05]} 6. e5 {[%emt 0:00:05]} d5 {[%emt 0:00:07]} 7. Bb5 {[%emt 0:00:06]} Ne4 {[%emt 0:00:06]} 8. cxd4 {[%emt 0:00:07]} Bb4+ {[%emt 0:13:54]} 9. Bd2 {[%emt 0:00:27]} Be7 {[%emt 0:09:42]} 10. Nc3 {[%emt 0:06:32]} O-O {[%emt 0:02:59]} 11. Be3 {[%emt 0:06:03]} Bg4 {[%emt 0:09:09]} 12. h3 {[%emt 0:05:48]} Bh5 {[%emt 0:00:02]} 13. g4 {[%emt 0:16:41]} Bg6 {[%emt 0:00:02]} 14. Ne2 {[%emt 0:00:22]} f5 {[%emt 0:22:53]} 15. Nf4 {[%emt 0:09:42]} Qd7 {[%emt 0:12:32]} 16. Qb3 {[%emt 0:25:40]} Bf7 {[%emt 0:08:57]} 17. Rg1 {[%emt 0:09:55]} Be6 {[%emt 0:03:20]} 18. g5 {[%emt 0:01:03]} a6 {[%emt 0:01:15]} 19. Bd3 {[%emt 0:01:18]} b5 {[%emt 0:04:34]} 20. Rc1 {[%emt 0:02:20]} Na5 {[%emt 0:00:49]} 21. Qc2 {[%emt 0:00:21]} Rac8 {[%emt 0:01:24]} 22. Bd2 {[%emt 0:03:46]} Nc4 {[%emt 0:00:10]} 23. b3 {[%emt 0:01:40]} Ncxd2 {[%emt 0:00:32]} 24. Nxd2 {[%emt 0:00:09]} Bb4 {[%emt 0:00:24]} 25. Bxe4 {[%emt 0:00:54]} fxe4 {[%emt 0:00:10]} 26. Nxe6 {[%emt 0:03:01]} Qxe6 {[%emt 0:00:01]} 27. Qc6 {[%emt 0:01:11]} Qf7 {[%emt 0:01:13]} 28. Rf1 {[%emt 0:00:36]} e3 {[%emt 0:00:05]} 0-1

[Event "Bijnor Open 2023"]
[Site "Bijnor"]
[Date "2023.12.03"]
[Round "7.9"]
[White "Abhibhav Kumar"]
[Black "Sananda, R."]
[Result "1/2-1/2"]
[ECO "C50"]
[WhiteElo "1127"]
[BlackElo "1365"]
[Annotator "NA RC"]
[PlyCount "61"]
[EventDate "2023.11.29"]
[EventCountry "IND"]
[SourceTitle "playchess.com"]
[Source "ChessBase"]
[SourceQuality "1"]
[TimeControl "5400+30"]

1. e4 {[%emt 0:00:08]} e5 {[%emt 0:00:10]} 2. Nf3 {[%emt 0:00:26]} Nc6 {[%emt 0:00:10]} 3. Bc4 {[%emt 0:00:05]} Bc5 {[%emt 0:00:28]} 4. Nc3 {[%emt 0:01:15]} d6 {[%emt 0:00:27]} 5. d3 {[%emt 0:00:09]} h6 {[%emt 0:00:18]} 6. Be3 {[%emt 0:00:19]} Bb6 {[%emt 0:00:07]} 7. h3 {[%emt 0:00:07]} Nf6 {[%emt 0:00:04]} 8. Qd2 {[%emt 0:00:17]} Be6 {[%emt 0:00:20]} 9. Bb3 {[%emt 0:00:08]} Nd4 {[%emt 0:01:57]} 10. Bxd4 {[%emt 0:00:37]} exd4 {[%emt 0:00:10]} 11. Ne2 {[%emt 0:00:07]} c5 {[%emt 0:00:08]} 12. Nf4 {[%emt 0:12:24]} Ba5 {[%emt 0:04:50]} 13. c3 {[%emt 0:00:15]} Bxb3 {[%emt 0:00:17]} 14. axb3 {[%emt 0:00:14]} O-O {[%emt 0:00:11]} 15. Nh4 {[%emt 0:10:47]} Re8 {[%emt 0:05:10]} 16. O-O {[%emt 0:02:30]} dxc3 {[%emt 0:02:50]} 17. bxc3 {[%emt 0:00:45]} Bc7 {[%emt 0:00:13]} 18. Nf3 {[%emt 0:07:50]} d5 {[%emt 0:04:06]} 19. Nxd5 {[%emt 0:01:00]} Nxd5 {[%emt 0:00:14]} 20. exd5 {[%emt 0:00:10]} Qxd5 {[%emt 0:00:12]} 21. d4 {[%emt 0:10:28]} cxd4 {[%emt 0:05:48]} 22. Qxd4 {[%emt 0:00:42]} Qxb3 {[%emt 0:01:50]} 23. Rxa7 {[%emt 0:07:21]} Rxa7 {[%emt 0:00:19]} 24. Qxa7 {[%emt 0:00:10]} Bb6 {[%emt 0:00:03]} 25. Qa1 {[%emt 0:00:33]} Re2 {[%emt 0:07:15]} 26. Nd4 {[%emt 0:00:36]} Bxd4 {[%emt 0:00:14]} 27. cxd4 {[%emt 0:00:09]} Ra2 {[%emt 0:00:48]} 28. Qb1 {[%emt 0:00:47]} Qxb1 {[%emt 0:00:57]} 29. Rxb1 {[%emt 0:00:06]} Rd2 {[%emt 0:00:03]} 30. Rxb7 {[%emt 0:00:10]} Rxd4 {[%emt 0:00:05]} 31. Kh2 {[%emt 0:00:07]} 1/2-1/2

[Event "Bijnor Open 2023"]
[Site "Bijnor"]
[Date "2023.12.03"]
[Round "7.10"]
[White "Surender Kumar"]
[Black "Vatsal Makol"]
[Result "0-1"]
[ECO "B20"]
[WhiteElo "1271"]
[BlackElo "1478"]
[Annotator "NA RC"]
[PlyCount "148"]
[EventDate "2023.11.29"]
[EventCountry "IND"]
[SourceTitle "playchess.com"]
[Source "ChessBase"]
[SourceQuality "1"]
[TimeControl "5400+30"]

1. e4 {[%emt 0:00:15]} c5 {[%emt 0:00:28]} 2. Bc4 {[%emt 0:00:12]} e6 {[%emt 0:01:49]} 3. Nc3 {[%emt 0:00:55]} Nc6 {[%emt 0:00:47]} 4. a3 {[%emt 0:00:17]} Nf6 {[%emt 0:00:29]} 5. d3 {[%emt 0:00:13]} d5 {[%emt 0:01:12]} 6. exd5 {[%emt 0:00:27]} exd5 {[%emt 0:00:02]} 7. Ba2 {[%emt 0:00:03]} h6 {[%emt 0:03:41]} 8. h3 {[%emt 0:00:15]} Be7 {[%emt 0:01:07]} 9. Nge2 {[%emt 0:00:15]} d4 {[%emt 0:03:05]} 10. Ne4 {[%emt 0:00:11]} O-O {[%emt 0:00:20]} 11. N2g3 {[%emt 0:00:47]} Re8 {[%emt 0:05:17]} 12. O-O {[%emt 0:00:05]} Bf8 {[%emt 0:00:23]} 13. f4 {[%emt 0:00:19]} Nxe4 {[%emt 0:08:59]} 14. Nxe4 {[%emt 0:00:18]} Be6 {[%emt 0:11:42]} 15. Bxe6 {[%emt 0:03:16]} Rxe6 {[%emt 0:00:28]} 16. f5 {[%emt 0:00:09]} Re8 {[%emt 0:00:32]} 17. f6 {[%emt 0:00:15]} g6 {[%emt 0:00:10]} 18. Qg4 {[%emt 0:00:27]} Kh7 {[%emt 0:06:44]} 19. Qh4 {[%emt 0:01:46]} Qd5 {[%emt 0:02:14]} 20. Bd2 {[%emt 0:05:07]} Re5 {[%emt 0:02:43]} 21. Bf4 {[%emt 0:00:38]} g5 {[%emt 0:01:44]} 22. Nxg5+ {[%emt 0:04:29]} Rxg5 {[%emt 0:00:09]} 23. Bxg5 {[%emt 0:00:17]} Qxg5 {[%emt 0:00:10]} 24. Qe4+ {[%emt 0:00:05]} Qg6 {[%emt 0:01:08]} 25. Qe2 {[%emt 0:00:51]} Bd6 {[%emt 0:01:55]} 26. Rf3 {[%emt 0:00:29]} a5 {[%emt 0:05:11]} 27. Raf1 {[%emt 0:01:13]} Be5 {[%emt 0:01:16]} 28. Rf5 {[%emt 0:00:47]} Re8 {[%emt 0:01:45]} 29. Qd2 {[%emt 0:01:53]} Re6 {[%emt 0:05:06]} 30. Qd1 {[%emt 0:11:29]} Rxf6 {[%emt 0:01:07]} 31. Rxf6 {[%emt 0:00:06]} Bxf6 {[%emt 0:00:05]} 32. Qf3 {[%emt 0:00:37]} Kg7 {[%emt 0:00:52]} 33. Qd5 {[%emt 0:00:46]} Qg5 {[%emt 0:02:49]} 34. Qd7 {[%emt 0:02:31]} Qe3+ {[%emt 0:00:31]} 35. Kh1 {[%emt 0:00:22]} Qe2 {[%emt 0:02:48]} 36. Qf5 {[%emt 0:01:09]} Qe5 {[%emt 0:01:03]} 37. Qg4+ {[%emt 0:00:24]} Kf8 {[%emt 0:01:26]} 38. Qc8+ {[%emt 0:01:40]} Nd8 {[%emt 0:00:26]} 39. Qd7 {[%emt 0:01:01]} Be7 {[%emt 0:01:22]} 40. Qg4 {[%emt 0:00:57]} Bd6 {[%emt 0:00:33]} 41. Kg1 {[%emt 0:00:33]} Qe3+ {[%emt 0:00:31]} 42. Kh1 {[%emt 0:02:09]} Qg3 {[%emt 0:00:31]} 43. Qxg3 {[%emt 0:00:45]} Bxg3 {[%emt 0:00:02]} 44. Rf3 {[%emt 0:00:43]} Be5 {[%emt 0:00:43]} 45. a4 {[%emt 0:00:36]} f6 {[%emt 0:01:51]} 46. g4 {[%emt 0:00:36]} Ne6 {[%emt 0:01:04]} 47. b3 {[%emt 0:00:24]} Ng5 {[%emt 0:00:21]} 48. Rf5 {[%emt 0:00:36]} Nxh3 {[%emt 0:00:44]} 49. Kg2 {[%emt 0:01:33]} Ng5 {[%emt 0:00:33]} 50. Rf1 {[%emt 0:00:39]} Kg7 {[%emt 0:00:31]} 51. Rh1 {[%emt 0:00:18]} Kg6 {[%emt 0:00:05]} 52. Rf1 {[%emt 0:01:19]} Ne6 {[%emt 0:00:03]} 53. Kf3 {[%emt 0:00:29]} Ng5+ {[%emt 0:00:52]} 54. Kg2 {[%emt 0:00:27]} Nf7 {[%emt 0:00:11]} 55. Kf3 {[%emt 0:00:16]} Nd6 {[%emt 0:00:01]} 56. Rg1 {[%emt 0:00:41]} b6 {[%emt 0:04:58]} 57. Rg2 {[%emt 0:00:14]} Ne8 {[%emt 0:00:58]} 58. Ke4 {[%emt 0:00:31]} Nc7 {[%emt 0:00:03]} 59. Rg1 {[%emt 0:05:22]} Na6 {[%emt 0:01:31]} 60. Rg2 {[%emt 0:00:50]} Nb4 {[%emt 0:00:06]} 61. Rf2 {[%emt 0:02:48]} Kg5 {[%emt 0:00:14]} 62. Rg2 {[%emt 0:00:21]} Bf4 {[%emt 0:04:30]} 63. Kf3 {[%emt 0:00:53]} Nc6 {[%emt 0:00:50]} 64. Rf2 {[%emt 0:05:38]} Be3 {[%emt 0:00:38]} 65. Rh2 {[%emt 0:00:20]} Ne5+ {[%emt 0:00:10]} 66. Ke4 {[%emt 0:00:47]} Nxg4 {[%emt 0:00:04]} 67. Rg2 {[%emt 0:00:51]} h5 {[%emt 0:01:55]} 68. Kf3 {[%emt 0:00:17]} f5 {[%emt 0:00:12]} 69. Rg3 {[%emt 0:00:44]} h4 {[%emt 0:00:14]} 70. Rh3 {[%emt 0:00:27]} Ne5+ {[%emt 0:00:01]} 71. Ke2 {[%emt 0:01:48]} f4 {[%emt 0:00:02]} 72. Kf1 {[%emt 0:02:51]} f3 {[%emt 0:00:06]} 73. Ke1 {[%emt 0:00:40]} Kg4 {[%emt 0:00:03]} 74. Rh1 {[%emt 0:00:24]} Kg3 {[%emt 0:00:07]} 0-1